fUSD/lending_fUSD_20250221
["ID","MTS","AMOUNT","RATE_DAILY","PERIOD"]
[354015027,1740180679650,-944.98,0.00012191,2]
[354015028,1740180679661,-500.0,0.00012191,2]
[354015029,1740180679670,-500.0,0.00012191,2]
[354015030,1740180679680,-602.43,0.00012191,2]
[354015031,1740180679690,-726.8,0.00012191,2]
[354015032,1740180679700,-500.0,0.00012191,2]
[354015033,1740180679711,-1601.17,0.00012191,2]
[354015034,1740180679721,-500.0,0.00012191,2]
[354015035,1740180679731,-561.26,0.00012191,2]
[354015036,1740180679742,-686.26,0.00012191,2]
[354015037,1740180679751,-658.34,0.00012191,2]
[354015038,1740180679761,-1257.33,0.00012191,2]
[354015039,1740180679771,-786.53,0.00012191,2]
[354015040,1740180679781,-796.14,0.00012191,2]
[354015041,1740180679791,-671.55,0.00012191,2]
[354015042,1740180679801,-578.65,0.00012191,2]
[354015043,1740180679811,-2368.54,0.00012191,2]
[354015044,1740180679821,-619.4,0.00012191,2]
[354015045,1740180679832,-527.9,0.00012191,2]
[354015046,1740180679842,-1200.0,0.00012222,2]
[354015047,1740180679852,-1300.0,0.00012222,2]
[354015048,1740180679864,-424.38918228,0.00012238,2]
[354015049,1740180679875,-500.0,0.0001227,2]
[354015050,1740180679886,-500.0,0.0001227,2]
[354015051,1740180679896,-960.49,0.0001227,2]
[354015052,1740180679907,-1496.97,0.0001227,2]
[354015053,1740180679917,-584.0,0.0001227,2]
[354015054,1740180679927,-1318.76,0.0001227,2]
[354015055,1740180679937,-527.01,0.0001227,2]
[354015056,1740180679947,-531.46,0.00012271,2]
[354015057,1740180679957,-500.0,0.00012271,2]
[354015058,1740180679967,-500.0,0.00012271,2]
[354015059,1740180679977,-500.0,0.00012271,2]
[354015060,1740180679986,-500.0,0.00012271,2]
[354015061,1740180679997,-500.0,0.00012271,2]
[354015062,1740180680007,-567.73,0.00012271,2]
[354015063,1740180680016,-908.79,0.00012271,2]
[354015064,1740180680026,-807.0,0.00012271,2]
[354015065,1740180680036,-1363.91,0.00012271,2]
[354015066,1740180680045,-2037.76,0.00012271,2]
[354015067,1740180680055,-500.0,0.00012271,2]
[354015068,1740180680064,-537.92,0.00012271,2]
[354015069,1740180680074,-620.22,0.00012271,2]
[354015070,1740180680083,-500.0,0.00012271,2]
[354015071,1740180680092,-545.7,0.00012271,2]
[354015072,1740180680102,-652.61,0.00012271,2]
[354015073,1740180680111,-500.0,0.00012271,2]
[354015074,1740180680120,-571.4,0.00012271,2]
[354015075,1740180680130,-1417.33,0.00012271,2]
[354015076,1740180680139,-3499.92,0.00012271,2]
[354015077,1740180680149,-224.95,0.00012271,2]
[354015078,1740180680160,-820.61,0.00012271,2]
[354015079,1740180680170,-738.7,0.00012271,2]
[354015080,1740180680179,-500.0,0.00012271,2]
[354015081,1740180680191,-500.0,0.00012271,2]
[354015082,1740180680200,-623.34999999,0.00012271,2]
[354015083,1740180680210,-500.0,0.00012271,2]
[354015084,1740180680222,-1652.98,0.00012271,2]
[354015085,1740180680234,-1014.71,0.00012271,2]
[354015086,1740180680244,-1571.16,0.00012271,2]
[354015087,1740180680253,-399.44777705,0.00012271,2]
[354015088,1740180680268,-205.76222295,0.00012271,2]
[354015089,1740180680277,-809.41,0.00012271,2]
[354015090,1740180680286,-51.22404693,0.00012271,2]
[354015091,1740180680299,-766.50595307,0.00012271,2]
[354015092,1740180680309,-329.6107292,0.00012271,2]
[354015093,1740180680318,-813.29,0.00012271,2]
[354015094,1740180680328,-500.0,0.00012271,2]
[354015095,1740180680337,-282.77030113,0.00012271,2]
[354015096,1740180680349,-315.96969887,0.00012271,2]
[354015097,1740180680358,-544.58,0.00012271,2]
[354015098,1740180680367,-500.0,0.00012271,2]
[354015099,1740180680376,-604.85,0.00012271,2]
[354015100,1740180680386,-763.11,0.00012271,2]
[354015101,1740180680397,-514.53,0.00012271,2]
[354015102,1740180680408,-523.21,0.00012271,2]
[354015103,1740180680417,-944.98,0.00012273,2]
[354015104,1740180680427,-500.0,0.00012273,2]
[354015105,1740180680436,-295.54535882,0.00012273,2]
[354015106,1740180680448,-306.88464118,0.00012273,2]
[354015107,1740180680457,-500.0,0.00012273,2]
[354015108,1740180680467,-726.8,0.00012273,2]
[354015109,1740180680476,-249.72624252,0.00012273,2]
[354015110,1740180680486,-1601.17,0.00012273,2]
[354015111,1740180680495,-500.0,0.00012273,2]
[354015112,1740180680505,-561.26,0.00012273,2]
[354015113,1740180680514,-686.26,0.00012273,2]
[354015114,1740180680524,-658.34,0.00012273,2]
[354015115,1740180680533,-1257.33,0.00012273,2]
[354015116,1740180680542,-786.53,0.00012273,2]
[354015117,1740180680551,-796.14,0.00012273,2]
[354015118,1740180680561,-671.55,0.00012273,2]
[354015119,1740180680570,-578.65,0.00012273,2]
[354015120,1740180680579,-2368.54,0.00012273,2]
[354015121,1740180680589,-619.4,0.00012273,2]
[354015122,1740180680599,-527.9,0.00012273,2]
[354015123,1740180680609,-232.48,0.00012315,2]
[354015124,1740180680619,-150.0,0.00012316,2]
[354015125,1740180680628,-218.18394942,0.00012329,2]
[354015126,1740180680638,-500.0,0.00012352,2]
[354015127,1740180680647,-500.0,0.00012352,2]
[354015128,1740180680656,-960.49,0.00012352,2]
[354015129,1740180680666,-1496.97,0.00012352,2]
[354015130,1740180680676,-584.0,0.00012352,2]
[354015131,1740180680685,-1318.76,0.00012352,2]
[354015132,1740180680695,-527.01,0.00012352,2]
[354015133,1740180680704,-531.46,0.00012353,2]
[354015134,1740180680714,-500.0,0.00012353,2]
[354015135,1740180680724,-500.0,0.00012353,2]
[354015136,1740180680734,-291.84,0.00012353,2]
[354015137,1740180680743,-500.0,0.00012353,2]
[354015138,1740180680754,-500.0,0.00012353,2]
[354015139,1740180680763,-567.73,0.00012353,2]
[354015140,1740180680772,-908.79,0.00012353,2]
[354015141,1740180680782,-807.0,0.00012353,2]
[354015142,1740180680792,-1363.91,0.00012353,2]
[354015143,1740180680802,-2037.76,0.00012353,2]
[354015144,1740180680811,-607.71306877,0.00012353,2]
[354015145,1740180680821,-537.92,0.00012353,2]
[354015146,1740180680831,-620.22,0.00012353,2]
[354015147,1740180680840,-464.51109291,0.00012353,2]
[354015148,1740180680850,-545.7,0.00012353,2]
[354015149,1740180680859,-652.61,0.00012353,2]
[354015150,1740180680868,-500.0,0.00012353,2]
[354015151,1740180680879,-1417.33,0.00012353,2]
[354015152,1740180680889,-3499.92,0.00012353,2]
[354015153,1740180680899,-820.61,0.00012353,2]
[354015154,1740180680909,-738.7,0.00012353,2]
[354015155,1740180680919,-500.0,0.00012353,2]
[354015156,1740180680928,-500.0,0.00012353,2]
[354015157,1740180680938,-500.0,0.00012353,2]
[354015158,1740180680947,-1652.98,0.00012353,2]
[354015159,1740180680957,-1014.71,0.00012353,2]
[354015160,1740180680967,-1571.16,0.00012353,2]
[354015161,1740180680977,-605.21,0.00012353,2]
[354015162,1740180680987,-809.41,0.00012353,2]
[354015163,1740180680996,-817.73,0.00012353,2]
[354015164,1740180681005,-176.47471175,0.00012353,2]
[354015165,1740180681017,-636.81528825,0.00012353,2]
[354015166,1740180681027,-390.62221437,0.00012353,2]
[354015167,1740180681039,-109.37778563,0.00012353,2]
[354015168,1740180681049,-598.74,0.00012353,2]
[354015169,1740180681058,-544.58,0.00012353,2]
[354015170,1740180681068,-110.99056366,0.00012353,2]
[354015171,1740180681079,-389.00943634,0.00012353,2]
[354015172,1740180681088,-604.85,0.00012353,2]
[354015173,1740180681097,-763.11,0.00012353,2]
[354015174,1740180681107,-181.18023583,0.00012353,2]
[354015175,1740180681118,-333.34976417,0.00012353,2]
[354015176,1740180681128,-471.97772489,0.00012353,2]
[354015177,1740180681139,-51.23227511,0.00012353,2]
[354015178,1740180681149,-944.98,0.00012356,2]
[354015179,1740180681160,-575.75072345,0.00012356,2]
[354015180,1740180681173,-602.43,0.00012356,2]
[354015181,1740180681183,-108.35806069,0.00012356,2]
[354015182,1740180681194,-391.64193931,0.00012356,2]
[354015183,1740180681204,-726.8,0.00012356,2]
[354015184,1740180681214,-967.90437877,0.00012356,2]
[354015185,1740180681229,-633.26562123,0.00012356,2]
[354015186,1740180681238,-500.0,0.00012356,2]
[354015187,1740180681248,-561.26,0.00012356,2]
[354015188,1740180681257,-686.26,0.00012356,2]
[354015189,1740180681267,-658.34,0.00012356,2]
[354015190,1740180681276,-1257.33,0.00012356,2]
[354015191,1740180681285,-786.53,0.00012356,2]
[354015192,1740180681294,-796.14,0.00012356,2]
[354015193,1740180681306,-671.55,0.00012356,2]
[354015194,1740180681376,-578.65,0.00012356,2]
[354015195,1740180681385,-2368.54,0.00012356,2]
[354015196,1740180681395,-619.4,0.00012356,2]
[354015197,1740180681404,-527.9,0.00012356,2]
[354015198,1740180681413,-531.46,0.00012435,2]
[354015199,1740180681422,-500.0,0.00012435,2]
[354015200,1740180681431,-500.0,0.00012435,2]
[354015201,1740180681443,-500.0,0.00012435,2]
[354015202,1740180681452,-500.0,0.00012435,2]
[354015203,1740180681462,-567.73,0.00012435,2]
[354015204,1740180681471,-908.79,0.00012435,2]
[354015205,1740180681480,-807.0,0.00012435,2]
[354015206,1740180681490,-1363.91,0.00012435,2]
[354015207,1740180681499,-2037.76,0.00012435,2]
[354015208,1740180681508,-537.92,0.00012435,2]
[354015209,1740180681517,-500.0,0.00012435,2]
[354015210,1740180681525,-620.22,0.00012435,2]
[354015211,1740180681534,-500.0,0.00012435,2]
[354015212,1740180681543,-545.7,0.00012435,2]
[354015213,1740180681551,-652.61,0.00012435,2]
[354015214,1740180681560,-500.0,0.00012435,2]
[354015215,1740180681569,-1417.33,0.00012435,2]
[354015216,1740180681578,-3499.92,0.00012435,2]
[354015217,1740180681587,-820.61,0.00012435,2]
[354015218,1740180681596,-738.7,0.00012435,2]
[354015219,1740180681605,-500.0,0.00012435,2]
[354015220,1740180681614,-500.0,0.00012435,2]
[354015221,1740180681623,-960.49,0.00012435,2]
[354015222,1740180681633,-500.0,0.00012435,2]
[354015223,1740180681641,-1652.98,0.00012435,2]
[354015224,1740180681651,-1014.71,0.00012435,2]
[354015225,1740180681660,-1496.97,0.00012435,2]
[354015226,1740180681669,-1571.16,0.00012435,2]
[354015227,1740180681679,-605.21,0.00012435,2]
[354015228,1740180681688,-809.41,0.00012435,2]
[354015229,1740180681697,-584.0,0.00012435,2]
[354015230,1740180681707,-817.73,0.00012435,2]
[354015231,1740180681716,-813.29,0.00012435,2]
[354015232,1740180681725,-1318.76,0.00012435,2]
[354015233,1740180681735,-500.0,0.00012435,2]
[354015234,1740180681744,-598.74,0.00012435,2]
[354015235,1740180681754,-527.01,0.00012435,2]
[354015236,1740180681763,-544.58,0.00012435,2]
[354015237,1740180681772,-500.0,0.00012435,2]
[354015238,1740180681781,-604.85,0.00012435,2]
[354015239,1740180681790,-763.11,0.00012435,2]
[354015240,1740180681799,-514.53,0.00012435,2]
[354015241,1740180681809,-523.21,0.00012435,2]
[354015242,1740180681818,-508.82,0.00012436,2]
[354015243,1740180681827,-944.98,0.00012438,2]
[354015244,1740180681837,-602.43,0.00012438,2]
[354015245,1740180681847,-26.22658508,0.00012438,2]
[354015246,1740180681870,-423.34,0.00011531,2]
[354015247,1740180681881,-421.74259099,0.00012438,2]
[354015248,1740180681891,-726.8,0.00012438,2]
[354015249,1740180681900,-1601.17,0.00012438,2]
[354015250,1740180681910,-500.0,0.00012438,2]
[354015251,1740180681920,-561.26,0.00012438,2]
[354015252,1740180681929,-686.26,0.00012438,2]
[354015253,1740180681939,-658.34,0.00012438,2]
[354015254,1740180681947,-1257.33,0.00012438,2]
[354015255,1740180681957,-786.53,0.00012438,2]
[354015256,1740180681966,-796.14,0.00012438,2]
[354015257,1740180681975,-671.55,0.00012438,2]
[354015258,1740180681984,-578.65,0.00012438,2]
[354015259,1740180681993,-2368.54,0.00012438,2]
[354015260,1740180682002,-619.4,0.00012438,2]
[354015261,1740180682011,-527.9,0.00012438,2]
[354015262,1740180682021,-500.0,0.00012517,2]
[354015263,1740180682030,-500.0,0.00012517,2]
[354015264,1740180682040,-960.49,0.00012517,2]
[354015265,1740180682049,-1496.97,0.00012517,2]
[354015266,1740180682059,-584.0,0.00012517,2]
[354015267,1740180682069,-1318.76,0.00012517,2]
[354015268,1740180682078,-527.01,0.00012517,2]
[354015269,1740180682087,-531.46,0.00012518,2]
[354015270,1740180682097,-500.0,0.00012518,2]
[354015271,1740180682107,-500.0,0.00012518,2]
[354015272,1740180682118,-500.0,0.00012518,2]
[354015273,1740180682127,-500.0,0.00012518,2]
[354015274,1740180682139,-567.73,0.00012518,2]
[354015275,1740180682148,-908.79,0.00012518,2]
[354015276,1740180682158,-807.0,0.00012518,2]
[354015277,1740180682167,-1363.91,0.00012518,2]
[354015278,1740180682176,-2037.76,0.00012518,2]
[354015279,1740180682186,-537.92,0.00012518,2]
[354015280,1740180682195,-620.22,0.00012518,2]
[354015281,1740180682204,-545.7,0.00012518,2]
[354015282,1740180682213,-652.61,0.00012518,2]
[354015283,1740180682223,-500.0,0.00012518,2]
[354015284,1740180682235,-1417.33,0.00012518,2]
[354015285,1740180682244,-3499.92,0.00012518,2]
[354015286,1740180682254,-820.61,0.00012518,2]
[354015287,1740180682263,-738.7,0.00012518,2]
[354015288,1740180682273,-500.0,0.00012518,2]
[354015289,1740180682283,-500.0,0.00012518,2]
[354015290,1740180682292,-500.0,0.00012518,2]
[354015291,1740180682302,-1652.98,0.00012518,2]
[354015292,1740180682311,-1014.71,0.00012518,2]
[354015293,1740180682321,-1571.16,0.00012518,2]
[354015294,1740180682330,-605.21,0.00012518,2]
[354015295,1740180682340,-809.41,0.00012518,2]
[354015296,1740180682350,-817.73,0.00012518,2]
[354015297,1740180682360,-813.29,0.00012518,2]
[354015298,1740180682369,-500.0,0.00012518,2]
[354015299,1740180682378,-598.74,0.00012518,2]
[354015300,1740180682387,-544.58,0.00012518,2]
[354015301,1740180682397,-500.0,0.00012518,2]
[354015302,1740180682406,-604.85,0.00012518,2]
[354015303,1740180682416,-763.11,0.00012518,2]
[354015304,1740180682427,-514.53,0.00012518,2]
[354015305,1740180682436,-523.21,0.00012518,2]
[354015306,1740180682445,-944.98,0.0001252,2]
[354015307,1740180682455,-602.43,0.0001252,2]
[354015308,1740180682464,-726.8,0.0001252,2]
[354015309,1740180682474,-1601.17,0.0001252,2]
[354015310,1740180682483,-500.0,0.0001252,2]
[354015311,1740180682492,-561.26,0.0001252,2]
[354015312,1740180682501,-686.26,0.0001252,2]
[354015313,1740180682514,-658.34,0.0001252,2]
[354015314,1740180682524,-1257.33,0.0001252,2]
[354015315,1740180682532,-786.53,0.0001252,2]
[354015316,1740180682541,-796.14,0.0001252,2]
[354015317,1740180682551,-671.55,0.0001252,2]
[354015318,1740180682560,-578.65,0.0001252,2]
[354015319,1740180682569,-2368.54,0.0001252,2]
[354015320,1740180682578,-619.4,0.0001252,2]
[354015321,1740180682588,-527.9,0.0001252,2]
[354015322,1740180682597,-1000.0,0.00012587,2]
[354015323,1740180682608,-500.0,0.00012599,2]
[354015324,1740180682617,-500.0,0.00012599,2]
[354015325,1740180682627,-960.49,0.00012599,2]
[354015326,1740180682638,-538.50244356,0.00012599,2]
[354015327,1740180682679,-958.46755644,0.00012599,2]
[354015328,1740180682688,-458.93094356,0.00012599,2]
[354015329,1740180682768,-824.42,0.00011203,2]
[354015330,1740180682778,-824.42,0.00011285,2]
[354015331,1740180682787,-4.21170009,0.00011534,2]
[354015332,1740180682799,-495.78829991,0.00011534,2]
[354015333,1740180682808,-500.0,0.00011616,2]
[354015334,1740180682817,-213.3846563,0.00011698,2]
[354015335,1740180682828,-286.6153437,0.00011698,2]
[354015336,1740180682838,-125.06905644,0.00012599,2]
[354015337,1740180682847,-605.99860166,0.00012599,2]
[354015338,1740180682858,-712.76139834,0.00012599,2]
[354015339,1740180682867,-477.12033377,0.00012599,2]
[354015340,1740180682878,-49.88966623,0.00012599,2]
[354015341,1740180682888,-396.62206885,0.000126,2]
[354015342,1740180682899,-134.83793115,0.000126,2]
[354015343,1740180682909,-500.0,0.000126,2]
[354015344,1740180682918,-500.0,0.000126,2]
[354015345,1740180682927,-375.4,0.000126,2]
[354015346,1740180682936,-567.73,0.000126,2]
[354015347,1740180682946,-908.79,0.000126,2]
[354015348,1740180682955,-807.0,0.000126,2]
[354015349,1740180682966,-1363.91,0.000126,2]
[354015350,1740180682976,-2037.76,0.000126,2]
[354015351,1740180682985,-537.92,0.000126,2]
[354015352,1740180682994,-620.22,0.000126,2]
[354015353,1740180683004,-545.7,0.000126,2]
[354015354,1740180683013,-652.61,0.000126,2]
[354015355,1740180683022,-500.0,0.000126,2]
[354015356,1740180683032,-1417.33,0.000126,2]
[354015357,1740180683041,-3499.92,0.000126,2]
[354015358,1740180683051,-820.61,0.000126,2]
[354015359,1740180683060,-738.7,0.000126,2]
[354015360,1740180683070,-514.01,0.000126,2]
[354015361,1740180683079,-286.43,0.000126,2]
[354015362,1740180683088,-500.0,0.000126,2]
[354015363,1740180683097,-1652.98,0.000126,2]
[354015364,1740180683107,-1014.71,0.000126,2]
[354015365,1740180683117,-1571.16,0.000126,2]
[354015366,1740180683126,-605.21,0.000126,2]
[354015367,1740180683135,-809.41,0.000126,2]
[354015368,1740180683145,-817.73,0.000126,2]
[354015369,1740180683154,-813.29,0.000126,2]
[354015370,1740180683163,-500.0,0.000126,2]
[354015371,1740180683173,-598.74,0.000126,2]
[354015372,1740180683182,-544.58,0.000126,2]
[354015373,1740180683192,-500.0,0.000126,2]
[354015374,1740180683201,-604.85,0.000126,2]
[354015375,1740180683212,-763.11,0.000126,2]
[354015376,1740180683225,-514.53,0.000126,2]
[354015377,1740180683234,-523.21,0.000126,2]
[354015378,1740180683243,-944.98,0.00012602,2]
[354015379,1740180683253,-602.43,0.00012602,2]
[354015380,1740180683263,-726.8,0.00012602,2]
[354015381,1740180683274,-1601.17,0.00012602,2]
[354015382,1740180683284,-500.0,0.00012602,2]
[354015383,1740180683293,-561.26,0.00012602,2]
[354015384,1740180683302,-686.26,0.00012602,2]
[354015385,1740180683311,-658.34,0.00012602,2]
[354015386,1740180683321,-1257.33,0.00012602,2]
[354015387,1740180683330,-786.53,0.00012602,2]
[354015388,1740180683340,-796.14,0.00012602,2]
[354015389,1740180683349,-671.55,0.00012602,2]
[354015390,1740180683358,-578.65,0.00012602,2]
[354015391,1740180683367,-2368.54,0.00012602,2]
[354015392,1740180683376,-619.4,0.00012602,2]
[354015393,1740180683385,-527.9,0.00012602,2]
[354015394,1740180683395,-1415.49,0.00012635,2]
[354015395,1740180683404,-442.437,0.00012636,2]
[354015396,1740180683413,-1424.0,0.00012636,2]
[354015397,1740180683422,-414.341,0.00012636,2]
[354015398,1740180683431,-539.0,0.00012636,2]
[354015399,1740180683440,-1496.964,0.00012636,2]
[354015400,1740180683450,-3919.0,0.00012636,2]
[354015401,1740180683459,-150.0,0.00012636,2]
[354015402,1740180683468,-636.162,0.00012636,2]
[354015403,1740180683477,-548.762,0.00012636,2]
[354015404,1740180683487,-150.0,0.00012649,2]
[354015405,1740180683496,-424.38918228,0.00012671,2]
[354015406,1740180683505,-500.0,0.00012681,2]
[354015407,1740180683515,-500.0,0.00012681,2]
[354015408,1740180683524,-960.49,0.00012681,2]
[354015409,1740180683533,-1496.97,0.00012681,2]
[354015410,1740180683542,-584.0,0.00012681,2]
[354015411,1740180683551,-1318.76,0.00012681,2]
[354015412,1740180683560,-527.01,0.00012681,2]
[354015413,1740180683569,-531.46,0.00012682,2]
[354015414,1740180683579,-619.15,0.00012682,2]
[354015415,1740180683588,-234.12,0.00012682,2]
[354015416,1740180683597,-567.73,0.00012682,2]
[354015417,1740180683606,-908.79,0.00012682,2]
[354015418,1740180683616,-807.0,0.00012682,2]
[354015419,1740180683625,-1363.91,0.00012682,2]
[354015420,1740180683635,-2037.76,0.00012682,2]
[354015421,1740180683644,-537.92,0.00012682,2]
[354015422,1740180683653,-620.22,0.00012682,2]
[354015423,1740180683662,-545.7,0.00012682,2]
[354015424,1740180683671,-652.61,0.00012682,2]
[354015425,1740180683680,-237.15663669,0.00012682,2]
[354015426,1740180683690,-1417.33,0.00012682,2]
[354015427,1740180683700,-3499.92,0.00012682,2]
[354015428,1740180683709,-820.61,0.00012682,2]
[354015429,1740180683718,-738.7,0.00012682,2]
[354015430,1740180683727,-500.0,0.00012682,2]
[354015431,1740180683736,-1652.98,0.00012682,2]
[354015432,1740180683745,-1014.71,0.00012682,2]
[354015433,1740180683755,-1571.16,0.00012682,2]
[354015434,1740180683765,-605.21,0.00012682,2]
[354015435,1740180683774,-809.41,0.00012682,2]
[354015436,1740180683783,-817.73,0.00012682,2]
[354015437,1740180683792,-813.29,0.00012682,2]
[354015438,1740180683802,-262.2978473,0.00012682,2]
[354015439,1740180683811,-598.74,0.00012682,2]
[354015440,1740180683819,-544.58,0.00012682,2]
[354015441,1740180683828,-407.42534375,0.00012682,2]
[354015442,1740180683838,-604.85,0.00012682,2]
[354015443,1740180683847,-763.11,0.00012682,2]
[354015444,1740180683857,-514.53,0.00012682,2]
[354015445,1740180683867,-523.21,0.00012682,2]
[354015446,1740180683878,-944.98,0.00012684,2]
[354015447,1740180683887,-602.43,0.00012684,2]
[354015448,1740180683897,-726.8,0.00012684,2]
[354015449,1740180683906,-1601.17,0.00012684,2]
[354015450,1740180683915,-500.0,0.00012684,2]
[354015451,1740180683925,-561.26,0.00012684,2]
[354015452,1740180683934,-686.26,0.00012684,2]
[354015453,1740180683944,-658.34,0.00012684,2]
[354015454,1740180683953,-1257.33,0.00012684,2]
[354015455,1740180683963,-786.53,0.00012684,2]
[354015456,1740180683972,-796.14,0.00012684,2]
[354015457,1740180683982,-671.55,0.00012684,2]
[354015458,1740180683991,-578.65,0.00012684,2]
[354015459,1740180684000,-2368.54,0.00012684,2]
[354015460,1740180684009,-619.4,0.00012684,2]
[354015461,1740180684019,-527.9,0.00012684,2]
[354015462,1740180684028,-346.43,0.0001275,2]
[354015463,1740180684037,-500.0,0.00012763,2]
[354015464,1740180684047,-368.42352253,0.00012763,2]
[354015465,1740180684057,-960.49,0.00012763,2]
[354015466,1740180684067,-1496.97,0.00012763,2]
[354015467,1740180684076,-584.0,0.00012763,2]
[354015468,1740180684085,-1318.76,0.00012763,2]
[354015469,1740180684096,-500.0,0.00012763,2]
[354015470,1740180684106,-527.01,0.00012763,2]
[354015471,1740180684115,-531.46,0.00012764,2]
[354015472,1740180684124,-567.73,0.00012764,2]
[354015473,1740180684133,-908.79,0.00012764,2]
[354015474,1740180684142,-807.0,0.00012764,2]
[354015475,1740180684152,-1363.91,0.00012764,2]
[354015476,1740180684161,-2037.76,0.00012764,2]
[354015477,1740180684171,-537.92,0.00012764,2]
[354015478,1740180684180,-620.22,0.00012764,2]
[354015479,1740180684190,-545.7,0.00012764,2]
[354015480,1740180684201,-652.61,0.00012764,2]
[354015481,1740180684212,-1417.33,0.00012764,2]
[354015482,1740180684222,-3499.92,0.00012764,2]
[354015483,1740180684237,-820.61,0.00012764,2]
[354015484,1740180684247,-738.7,0.00012764,2]
[354015485,1740180684258,-418.96,0.00012764,2]
[354015486,1740180684267,-1652.98,0.00012764,2]
[354015487,1740180684276,-1014.71,0.00012764,2]
[354015488,1740180684285,-1571.16,0.00012764,2]
[354015489,1740180684295,-605.21,0.00012764,2]
[354015490,1740180684305,-809.41,0.00012764,2]
[354015491,1740180684314,-817.73,0.00012764,2]
[354015492,1740180684323,-813.29,0.00012764,2]
[354015493,1740180684333,-598.74,0.00012764,2]
[354015494,1740180684342,-544.58,0.00012764,2]
[354015495,1740180684352,-604.85,0.00012764,2]
[354015496,1740180684361,-763.11,0.00012764,2]
[354015497,1740180684370,-514.53,0.00012764,2]
[354015498,1740180684380,-523.21,0.00012764,2]
[354015499,1740180684390,-944.98,0.00012767,2]
[354015500,1740180684399,-602.43,0.00012767,2]
[354015501,1740180684409,-726.8,0.00012767,2]
[354015502,1740180684418,-1601.17,0.00012767,2]
[354015503,1740180684428,-341.48153397,0.00012767,2]
[354015504,1740180684438,-561.26,0.00012767,2]
[354015505,1740180684447,-686.26,0.00012767,2]
[354015506,1740180684457,-658.34,0.00012767,2]
[354015507,1740180684467,-1257.33,0.00012767,2]
[354015508,1740180684476,-786.53,0.00012767,2]
[354015509,1740180684485,-796.14,0.00012767,2]
[354015510,1740180684495,-671.55,0.00012767,2]
[354015511,1740180684504,-578.65,0.00012767,2]
[354015512,1740180684514,-2368.54,0.00012767,2]
[354015513,1740180684523,-619.4,0.00012767,2]
[354015514,1740180684532,-527.9,0.00012767,2]
[354015515,1740180684541,-1493.56,0.00012814,2]
[354015516,1740180684551,-218.18394942,0.00012831,2]
[354015517,1740180684560,-531.46,0.00012846,2]
[354015518,1740180684570,-567.73,0.00012846,2]
[354015519,1740180684580,-908.79,0.00012846,2]
[354015520,1740180684590,-807.0,0.00012846,2]
[354015521,1740180684601,-1363.91,0.00012846,2]
[354015522,1740180684611,-2037.76,0.00012846,2]
[354015523,1740180684621,-537.92,0.00012846,2]
[354015524,1740180684631,-468.84648914,0.00012846,2]
[354015525,1740180684641,-620.22,0.00012846,2]
[354015526,1740180684651,-545.7,0.00012846,2]